bitfinex/quotes_BTCUSD_20260311
["timestamp","ask_amount","ask_price","bid_price","bid_amount"]
[1773227686872,0.00029501,69617.0,69603.0,0.11433848]
[1773227687212,0.00029501,69617.0,69602.0,0.00116]
[1773227687689,0.00029501,69617.0,69602.0,0.11549848]
[1773227688216,0.00029501,69617.0,69602.0,0.00116]
[1773227688558,0.00029501,69617.0,69604.0,7.5e-05]
[1773227689120,0.00029501,69617.0,69605.0,0.03968882]
[1773227689656,0.00013647,69615.0,69609.0,7.5e-05]
[1773227689957,0.00013647,69615.0,69609.0,0.001235]
[1773227690583,0.00022001,69624.0,69609.0,0.04092382]
[1773227690721,0.00022001,69629.0,69614.0,0.03968882]
[1773227690921,0.00022001,69629.0,69614.0,0.03980057]
[1773227691641,0.00022001,69620.0,69614.0,0.03980057]
[1773227691825,0.00022001,69629.0,69614.0,0.00111175]
[1773227691826,0.0001751,69626.0,69614.0,0.00111175]
[1773227692020,0.00053811,69635.0,69616.0,0.3968882]
[1773227692329,0.00053811,69635.0,69614.0,0.11545023]
[1773227692330,0.00053811,69635.0,69625.0,0.03968882]
[1773227692529,0.00053811,69635.0,69626.0,0.00116]
[1773227694756,0.00053811,69635.0,69626.0,0.001085]
[1773227701067,0.00022001,69637.0,69626.0,0.001085]
[1773227701243,0.00022001,69642.0,69626.0,0.001085]
[1773227701444,0.00022001,69642.0,69630.0,0.03968882]
[1773227701642,0.08278063,69647.0,69630.0,0.03959905]
[1773227702291,0.08285563,69643.0,69630.0,0.03959905]
[1773227702443,0.08285563,69643.0,69622.0,7.5e-05]
[1773227702647,0.08285563,69643.0,69630.0,0.001]
[1773227702850,0.08285563,69643.0,69629.0,0.00116]
[1773227703269,0.08285563,69643.0,69626.0,7.5e-05]
[1773227703469,0.08285563,69643.0,69627.0,0.00116]
[1773227703803,0.08285563,69643.0,69630.0,7.5e-05]
[1773227703950,0.08285563,69643.0,69630.0,0.001]
[1773227704152,0.08285563,69643.0,69627.0,0.00116]
[1773227704885,0.08401563,69643.0,69627.0,0.00100953]
[1773227705297,0.08401563,69643.0,69641.0,0.00048]
[1773227705634,0.08401563,69643.0,69626.0,0.00116]
[1773227707131,0.091304,69643.0,69626.0,0.00116]
[1773227707365,0.1239974,69642.0,69626.0,0.00116]
[1773227707939,0.1239974,69642.0,69627.0,0.001]
[1773227708344,0.1239974,69642.0,69626.0,0.00116]
[1773227711063,0.12421741,69642.0,69626.0,0.00116]
[1773227713469,0.12421741,69642.0,69619.0,0.11433848]
[1773227713668,0.12421741,69642.0,69617.0,7.5e-05]
[1773227713669,0.12421741,69642.0,69620.0,0.04075905]
[1773227713888,0.12421741,69642.0,69620.0,0.0408708]
[1773227714275,0.12421741,69642.0,69620.0,0.15520928]
[1773227715318,0.12421741,69642.0,69621.0,0.11433848]
[1773227716055,0.12421741,69642.0,69622.0,0.11433848]
[1773227716263,0.12421741,69642.0,69623.0,0.11433848]
[1773227716985,0.1237474,69640.0,69623.0,0.11433848]
[1773227717158,7.5e-05,69635.0,69623.0,0.11433848]
[1773227718084,0.00138001,69642.0,69625.0,0.03959905]
[1773227718277,0.00138001,69642.0,69630.0,0.03959905]
[1773227718475,0.00122001,69642.0,69630.0,0.03959905]
[1773227718863,0.13648662,69650.0,69631.0,0.11433848]
[1773227719061,0.00022001,69643.0,69638.0,0.03959905]
[1773227719267,0.13648662,69650.0,69632.0,0.14593259]
[1773227719268,0.13648662,69650.0,69639.0,0.00116]
[1773227719647,0.001,69642.0,69639.0,0.00116]
[1773227719988,0.01295923,69650.0,69639.0,0.00116]
[1773227720320,0.01295923,69650.0,69641.0,0.00048]
[1773227720886,0.13966858,69650.0,69641.0,0.00048]
[1773227721476,0.00042983,69648.0,69638.0,0.11433848]
[1773227721734,0.12670935,69647.0,69627.0,0.17156619]
[1773227721937,0.12670935,69645.0,69628.0,0.00116]
[1773227724599,0.08275683,69647.0,69630.0,0.03959905]
[1773227724800,0.08275683,69645.0,69630.0,0.03959905]
[1773227725052,0.08275683,69645.0,69623.0,0.17176619]
[1773227725228,0.08275683,69639.0,69626.0,0.00116]
[1773227726232,0.08275683,69639.0,69623.0,0.0012]
[1773227726431,0.08275683,69639.0,69624.0,0.00116]
[1773227726899,0.08275683,69639.0,69627.0,0.0002]
[1773227728460,0.08275683,69639.0,69630.0,7.5e-05]
[1773227728661,0.08283183,69639.0,69627.0,0.0002]
[1773227729502,0.08383183,69639.0,69627.0,0.0002]
[1773227729799,0.08283183,69639.0,69627.0,0.0002]
[1773227732176,7.5e-05,69639.0,69629.0,0.03959905]
[1773227732382,0.08275683,69638.0,69627.0,0.0002]
[1773227733679,0.08275683,69638.0,69626.0,7.5e-05]
[1773227734013,0.08275683,69638.0,69623.0,0.00136]
[1773227734326,0.08275683,69638.0,69624.0,0.00116]
[1773227736282,7.5e-05,69639.0,69624.0,0.00116]
[1773227736283,7.5e-05,69639.0,69628.0,0.03959905]
[1773227736592,0.00022001,69642.0,69628.0,0.03959905]
[1773227738031,0.05761116,69642.0,69628.0,0.03959905]
[1773227738241,0.05861116,69642.0,69628.0,0.03959905]
[1773227738737,0.05761116,69642.0,69635.0,7.5e-05]
[1773227738967,0.05861116,69642.0,69635.0,7.5e-05]
[1773227739143,0.06989115,69640.0,69623.0,0.0002]
[1773227739344,7.5e-05,69630.0,69628.0,0.00116]
[1773227739644,7.5e-05,69630.0,69623.0,0.0002]
[1773227739844,7.5e-05,69630.0,69628.0,0.00116]
[1773227740263,7.5e-05,69630.0,69628.0,0.0004416]
[1773227743019,0.00022001,69642.0,69628.0,0.0004416]
[1773227743221,0.00022001,69645.0,69630.0,0.1188354]
[1773227744482,0.00122001,69645.0,69630.0,0.1188354]
[1773227744621,0.00022001,69645.0,69628.0,0.0004416]
[1773227745029,0.00122001,69645.0,69628.0,0.0004416]
[1773227745245,0.00022001,69645.0,69628.0,0.0004416]
[1773227746685,0.00022001,69656.0,69630.0,0.1188354]
[1773227746948,0.00037519,69652.0,69640.0,0.1188354]
[1773227747124,0.00037519,69652.0,69640.0,0.00116]
[1773227749231,0.00022001,69645.0,69640.0,0.00116]
[1773227749537,0.00022001,69645.0,69640.0,0.001085]
[1773227753377,0.00037519,69652.0,69640.0,0.001085]
[1773227756075,7.5e-05,69661.0,69641.0,0.00116]
[1773227756275,0.03845268,69660.0,69643.0,7.5e-05]
[1773227756479,0.00022001,69652.0,69643.0,7.5e-05]
[1773227756962,0.00022001,69652.0,69644.0,0.00116]
[1773227758447,0.00022001,69659.0,69644.0,0.00116]
[1773227758743,7.5e-05,69670.0,69650.0,0.1188354]
[1773227758894,7.5e-05,69670.0,69650.0,0.11920769]
[1773227759096,0.03867269,69666.0,69650.0,0.00037229]
[1773227759347,0.03867269,69666.0,69645.0,0.00116]
[1773227759517,0.03904498,69666.0,69645.0,0.00116]
[1773227759994,0.03845268,69651.0,69645.0,0.00116]
[1773227760797,0.03691899,69657.0,69645.0,0.00116]
[1773227761345,0.03691899,69657.0,69645.0,0.001]
[1773227761567,0.03691899,69657.0,69643.0,7.5e-05]
[1773227761769,0.03691899,69657.0,69645.0,0.001]
[1773227763531,0.03691899,69657.0,69643.0,7.5e-05]
[1773227763714,0.037139,69657.0,69643.0,7.5e-05]
[1773227763920,0.038139,69657.0,69643.0,7.5e-05]
[1773227764137,0.037139,69657.0,69643.0,7.5e-05]
[1773227764336,0.038139,69657.0,69648.0,7.5e-05]
[1773227764770,0.037139,69657.0,69648.0,7.5e-05]
[1773227764975,0.038139,69657.0,69643.0,7.5e-05]
[1773227765184,0.038139,69657.0,69639.0,7.5e-05]
[1773227765358,0.037064,69657.0,69630.0,7.5e-05]
[1773227766155,0.14328702,69657.0,69630.0,7.5e-05]
[1773227766349,0.03725276,69656.0,69652.0,7.5e-05]
[1773227766568,0.03725276,69656.0,69630.0,7.5e-05]
[1773227767192,0.14306701,69656.0,69630.0,7.5e-05]
[1773227767348,0.03721526,69655.0,69630.0,7.5e-05]
[1773227768035,0.03721526,69654.0,69630.0,7.5e-05]
[1773227768281,0.03721526,69655.0,69630.0,7.5e-05]
[1773227768437,0.03721526,69654.0,69630.0,7.5e-05]
[1773227768639,0.14306701,69654.0,69630.0,7.5e-05]
[1773227768840,0.03721526,69655.0,69630.0,7.5e-05]
[1773227769190,0.14306701,69654.0,69630.0,7.5e-05]
[1773227769386,0.03721526,69653.0,69630.0,7.5e-05]
[1773227769698,0.03721526,69651.0,69630.0,7.5e-05]
[1773227770860,0.03552979,69651.0,69630.0,7.5e-05]
[1773227771065,0.03652979,69651.0,69630.0,7.5e-05]
[1773227771254,0.14306701,69651.0,69630.0,7.5e-05]
[1773227771450,0.03637253,69651.0,69630.0,7.5e-05]
[1773227771704,0.03737253,69651.0,69630.0,7.5e-05]
[1773227772557,0.03837253,69651.0,69630.0,7.5e-05]
[1773227773020,0.03637253,69650.0,69630.0,7.5e-05]
[1773227774329,0.002,69650.0,69630.0,7.5e-05]
[1773227774515,0.03637253,69649.0,69630.0,7.5e-05]
[1773227775332,0.00022001,69654.0,69639.0,0.11879137]
[1773227775917,0.001,69649.0,69638.0,0.00108]
[1773227776389,0.04097405,69653.0,69638.0,0.00108]
[1773227776616,0.001,69649.0,69638.0,0.00108]
[1773227776825,0.04097405,69653.0,69638.0,0.00108]
[1773227777657,7.5e-05,69643.0,69638.0,0.00108]
[1773227778950,7.5e-05,69643.0,69638.0,0.00116018]
[1773227779350,7.5e-05,69648.0,69638.0,0.00116018]
[1773227779565,7.5e-05,69652.0,69638.0,0.00116018]
[1773227780515,0.00022001,69654.0,69640.0,0.11879137]
[1773227781736,0.00022001,69654.0,69638.0,0.00136018]
[1773227782548,0.00022001,69654.0,69639.0,0.01632074]
[1773227783188,0.00122001,69654.0,69639.0,0.01632074]
[1773227783397,0.00022001,69664.0,69641.0,0.01632074]
[1773227783597,0.00022001,69664.0,69651.0,0.01632074]
[1773227784276,0.00022001,69664.0,69651.0,0.01744074]
[1773227784822,0.011315,69674.0,69651.0,0.01744074]
[1773227785038,0.011315,69674.0,69661.0,0.03262474]
[1773227785238,0.011315,69674.0,69662.0,0.03262474]
[1773227785602,0.011315,69674.0,69664.0,0.03262474]
[1773227786212,0.01168729,69674.0,69664.0,0.03262474]
[1773227786418,0.01268729,69674.0,69664.0,0.03262474]
[1773227786824,0.0002343,69676.0,69664.0,0.03262474]
[1773227787036,7.5e-05,69683.0,69664.0,0.03262474]
[1773227787255,7.5e-05,69683.0,69664.0,0.03299703]
[1773227787493,0.001,69674.0,69664.0,0.03299703]
[1773227787799,0.002,69674.0,69664.0,0.03299703]
[1773227788928,0.001,69674.0,69664.0,0.03299703]
[1773227789160,7.5e-05,69683.0,69664.0,0.03411703]
[1773227789374,0.00116,69682.0,69664.0,0.03411703]
[1773227789508,0.00116,69682.0,69664.0,0.00149229]
[1773227789943,0.00022001,69674.0,69664.0,0.00149229]
[1773227791371,0.00022001,69674.0,69665.0,0.03262474]
[1773227792085,0.00022001,69674.0,69665.0,0.03269974]
[1773227792819,0.00022001,69674.0,69665.0,7.5e-05]
[1773227794016,0.00022001,69674.0,69665.0,0.03269974]
[1773227794282,0.00122001,69674.0,69665.0,0.03269974]
[1773227794439,0.00222001,69674.0,69665.0,0.03269974]
[1773227794837,0.00022001,69681.0,69665.0,0.03269974]
[1773227795037,0.00022001,69681.0,69671.0,0.03262474]
[1773227795864,0.001,69674.0,69671.0,0.03262474]
[1773227796065,0.000925,69674.0,69671.0,0.03262474]
[1773227796478,0.00122001,69681.0,69670.0,0.03269974]
[1773227796804,0.00022001,69681.0,69670.0,7.5e-05]
[1773227797006,0.00022001,69681.0,69665.0,7.5e-05]
[1773227797361,0.00122001,69681.0,69665.0,7.5e-05]
[1773227797789,0.00122001,69681.0,69665.0,0.03269974]
[1773227798405,0.00122001,69681.0,69663.0,0.00116]
[1773227798645,0.00259223,69681.0,69663.0,0.00116]
[1773227798941,0.00059223,69681.0,69656.0,0.03262474]
[1773227799146,0.00159223,69681.0,69663.0,0.00116]
[1773227799450,0.00059223,69681.0,69659.0,0.03262474]
[1773227799599,0.00159223,69681.0,69659.0,0.03378474]
[1773227799799,0.00259223,69681.0,69659.0,0.03378474]
[1773227800002,0.00159223,69681.0,69659.0,0.00116]
[1773227800205,0.00259223,69681.0,69659.0,0.00116]
[1773227800407,0.00159223,69681.0,69654.0,0.03262474]
[1773227800735,0.00259223,69681.0,69654.0,0.03378474]
[1773227800944,0.00259223,69681.0,69651.0,0.0002]
[1773227801280,0.00259223,69681.0,69638.0,0.0002]
[1773227801281,0.00023,69675.0,69646.0,0.00116]
[1773227801477,0.00116,69674.0,69646.0,0.00116]
[1773227801727,0.00116,69674.0,69638.0,0.0002]
[1773227801953,0.11467068,69673.0,69638.0,0.03282474]
[1773227802153,0.11467068,69672.0,69638.0,0.03282474]
[1773227802471,0.11467068,69672.0,69641.0,0.03262474]
[1773227803119,0.00116,69671.0,69641.0,0.03262474]
[1773227803524,0.11467068,69670.0,69641.0,0.03262474]
[1773227804954,0.23346205,69670.0,69641.0,0.03262474]
[1773227805163,0.11567068,69670.0,69641.0,0.03262474]
[1773227805389,0.11467068,69670.0,69641.0,0.03262474]
[1773227805774,0.11667068,69670.0,69641.0,0.03262474]
[1773227805966,0.11567068,69670.0,69641.0,0.03262474]
[1773227806161,0.11467068,69670.0,69641.0,0.03262474]
[1773227806426,0.11567068,69670.0,69641.0,0.03262474]
[1773227806608,0.11667068,69670.0,69641.0,0.03262474]
[1773227807222,0.002,69670.0,69645.0,0.03262474]
[1773227807362,0.001,69670.0,69638.0,0.0002]
[1773227807563,0.001,69670.0,69641.0,0.03262474]
[1773227807781,0.11583068,69671.0,69641.0,0.03262474]
[1773227808015,0.001,69670.0,69641.0,0.03262474]
[1773227808212,7.5e-05,69652.0,69641.0,0.03262474]
[1773227809442,7.5e-05,69652.0,69644.0,0.00034592]
[1773227809594,0.001075,69652.0,69644.0,0.00054592]
[1773227810138,7.5e-05,69652.0,69644.0,0.00054592]
[1773227811721,7.5e-05,69652.0,69638.0,0.0002]
[1773227812039,7.5e-05,69652.0,69639.0,0.00015518]
[1773227812218,7.5e-05,69657.0,69640.0,0.03262474]
[1773227812719,0.001,69652.0,69640.0,0.03262474]
[1773227812922,7.5e-05,69657.0,69640.0,0.03262474]
[1773227813103,0.001,69652.0,69640.0,0.03262474]
[1773227813292,0.002,69652.0,69640.0,0.03262474]
[1773227813492,0.001,69652.0,69640.0,0.03262474]
[1773227814476,7.5e-05,69657.0,69640.0,0.03262474]
[1773227816197,0.001075,69657.0,69640.0,0.03262474]
[1773227817364,7.5e-05,69657.0,69648.0,7.5e-05]
[1773227817977,7.5e-05,69657.0,69646.0,0.03262474]
[1773227818434,0.001075,69657.0,69646.0,0.03262474]
[1773227818953,0.002075,69657.0,69646.0,0.03262474]
[1773227819153,0.001075,69657.0,69646.0,0.03262474]
[1773227819452,7.5e-05,69657.0,69646.0,0.03262474]
[1773227819661,0.001075,69657.0,69646.0,0.03262474]
[1773227820189,7.5e-05,69657.0,69646.0,0.03262474]
[1773227820525,0.001075,69657.0,69646.0,0.03262474]
[1773227820726,7.5e-05,69661.0,69648.0,0.0338149]
[1773227820917,0.0002361,69669.0,69648.0,0.0338149]
[1773227821942,0.0002361,69669.0,69650.0,0.0338149]
[1773227822144,0.0002361,69669.0,69651.0,0.0349749]
[1773227822536,0.001,69657.0,69651.0,0.0349749]
[1773227822948,0.001,69657.0,69641.0,0.02604894]
[1773227823227,0.00116,69664.0,69642.0,0.00116]
[1773227823408,0.0002361,69669.0,69642.0,0.00116]
[1773227823409,0.0012361,69669.0,69643.0,0.02604894]
[1773227823554,0.00116,69664.0,69643.0,0.02604894]
[1773227823746,0.0012361,69669.0,69643.0,0.02604894]
[1773227823941,0.00116,69668.0,69643.0,0.02604894]
[1773227824389,0.00116,69668.0,69652.0,7.5e-05]
[1773227824590,0.00116,69668.0,69653.0,0.02604894]
[1773227824974,0.00116,69668.0,69652.0,7.5e-05]
[1773227825171,0.00116,69668.0,69657.0,7.5e-05]
[1773227825465,0.00116,69668.0,69652.0,7.5e-05]
[1773227826061,0.00116,69668.0,69661.0,7.5e-05]
[1773227826671,0.00216,69668.0,69661.0,7.5e-05]
[1773227827180,0.00253206,69668.0,69661.0,7.5e-05]
[1773227827425,0.00353206,69668.0,69652.0,0.02611447]
[1773227827635,0.00137206,69668.0,69652.0,0.02611447]
[1773227827840,0.00237206,69668.0,69652.0,0.02611447]
[1773227827985,0.00137206,69668.0,69652.0,0.02611447]
[1773227828392,0.00237206,69668.0,69652.0,0.02611447]
[1773227828588,0.00137206,69668.0,69652.0,0.02611447]
[1773227828790,0.14452591,69668.0,69643.0,0.000275]
[1773227829096,0.11452308,69666.0,69647.0,0.00116]
[1773227829404,0.14315385,69665.0,69647.0,0.00116]
[1773227829610,0.14315385,69664.0,69647.0,0.00116]
[1773227829818,0.14315385,69663.0,69647.0,0.00116]
[1773227830024,0.14431385,69662.0,69647.0,0.00116]
[1773227830251,0.14315385,69661.0,69647.0,0.00116]
[1773227831010,0.14315385,69660.0,69647.0,0.00116]
[1773227831205,0.14315385,69661.0,69647.0,0.00116]
[1773227831418,0.0433621,69659.0,69643.0,0.000275]
[1773227832030,0.0433621,69659.0,69644.0,0.04034403]
[1773227834974,0.0433621,69659.0,69644.0,0.04134403]
[1773227835197,0.00116,69658.0,69644.0,0.04134403]
[1773227835677,0.00116,69660.0,69644.0,0.04134403]
[1773227835879,0.00116,69660.0,69650.0,0.03959373]
[1773227836093,0.17235255,69666.0,69650.0,0.03959373]
[1773227836094,0.11452308,69666.0,69651.0,0.03888228]
[1773227837408,0.00153206,69668.0,69651.0,0.03888228]
[1773227837817,7.5e-05,69657.0,69651.0,0.03888228]
[1773227840034,7.5e-05,69661.0,69651.0,0.03888228]
[1773227841028,7.5e-05,69661.0,69651.0,0.03988228]
[1773227842701,7.5e-05,69661.0,69648.0,7.5e-05]
[1773227843310,0.03959373,69660.0,69644.0,0.0002]
[1773227843515,0.04312259,69658.0,69644.0,0.0002]
[1773227843721,0.14340524,69657.0,69644.0,0.0002]
[1773227843969,0.04312259,69658.0,69640.0,0.0002]
[1773227843970,0.14340524,69656.0,69640.0,0.0002]
[1773227844135,0.14340524,69657.0,69648.0,0.001]
[1773227844332,0.14340524,69656.0,69648.0,0.001]
[1773227844535,0.14340524,69657.0,69640.0,0.0002]
[1773227844738,0.14340524,69656.0,69640.0,0.0002]
[1773227844958,0.14340524,69657.0,69648.0,0.001]
[1773227845165,0.14340524,69656.0,69651.0,0.0002]
[1773227845362,0.14340524,69657.0,69640.0,0.0002]
[1773227845570,0.14340524,69656.0,69644.0,0.0002]
[1773227845791,0.14340524,69657.0,69644.0,0.0002]
[1773227845966,0.04428259,69658.0,69644.0,0.0002]
[1773227845967,0.14340524,69656.0,69644.0,0.0002]
[1773227846182,0.14340524,69657.0,69644.0,0.0002]
[1773227846336,0.14340524,69656.0,69644.0,0.0002]
[1773227846531,0.14340524,69657.0,69644.0,0.0002]
[1773227846862,0.14340524,69656.0,69644.0,0.0002]
[1773227847047,0.14340524,69655.0,69644.0,0.0002]
[1773227847243,0.14340524,69657.0,69644.0,0.0002]
[1773227847445,0.14340524,69656.0,69644.0,0.0002]
[1773227847637,0.14340524,69655.0,69644.0,0.0002]
[1773227847845,0.14340524,69654.0,69640.0,0.0002]
[1773227848091,0.14340524,69653.0,69640.0,0.0002]
[1773227848324,0.14340524,69656.0,69640.0,0.0002]
[1773227848516,0.14340524,69655.0,69640.0,0.0002]
[1773227848713,7.5e-05,69648.0,69640.0,0.0002]
[1773227849778,7.5e-05,69648.0,69641.0,0.0136515]
[1773227854625,7.5e-05,69648.0,69641.0,0.0138515]
[1773227854833,0.15764567,69658.0,69641.0,0.0138515]
[1773227854834,0.14340524,69656.0,69641.0,0.0138515]
[1773227855009,0.00022001,69666.0,69646.0,0.03959373]
[1773227855338,7.5e-05,69657.0,69651.0,0.0138236]
[1773227856570,0.001,69656.0,69651.0,0.0138236]
[1773227857196,0.001,69656.0,69651.0,0.0148236]
[1773227857395,0.001,69656.0,69651.0,0.0138236]
[1773227857641,0.001,69656.0,69651.0,0.0148236]
[1773227858415,7.5e-05,69657.0,69651.0,0.0148236]
[1773227858822,7.5e-05,69657.0,69651.0,0.001]
[1773227859538,7.5e-05,69657.0,69649.0,0.01388039]
[1773227859748,7.5e-05,69657.0,69651.0,0.001]
[1773227860165,7.5e-05,69657.0,69649.0,0.01388039]
[1773227860567,7.5e-05,69657.0,69641.0,0.0002]
[1773227860767,0.00847661,69656.0,69641.0,0.00136]
[1773227861148,7.5e-05,69657.0,69642.0,0.011322]
[1773227862061,7.5e-05,69657.0,69643.0,7.5e-05]
[1773227862258,7.5e-05,69657.0,69643.0,0.011397]
[1773227863070,0.00029501,69657.0,69648.0,7.5e-05]
[1773227870786,0.00029501,69657.0,69638.0,0.0002]
[1773227870989,0.11452308,69651.0,69633.0,0.00136]
[1773227871165,0.14329957,69650.0,69633.0,0.00136]
[1773227871367,0.14329957,69649.0,69633.0,0.00136]
[1773227871566,0.14329957,69648.0,69633.0,0.00136]
[1773227871778,0.14329957,69651.0,69641.0,0.0002]
[1773227871955,0.14329957,69653.0,69642.0,0.01110921]
[1773227872159,0.14329957,69656.0,69642.0,0.01110921]
[1773227872421,0.00116,69655.0,69641.0,0.0002]
[1773227872552,0.14445957,69655.0,69641.0,0.0002]
[1773227872751,0.00116,69655.0,69641.0,0.0002]
[1773227872965,0.14445957,69655.0,69641.0,0.01128061]
[1773227873166,0.00116,69655.0,69641.0,0.01128061]
[1773227873367,0.14445957,69655.0,69641.0,0.01128061]
[1773227873902,0.00216,69655.0,69641.0,0.01128061]
[1773227874106,0.14545957,69655.0,69641.0,0.01128061]
[1773227874273,0.00216,69655.0,69641.0,0.01128061]
[1773227874471,0.14545957,69655.0,69641.0,0.01128061]
[1773227874778,0.00316,69655.0,69641.0,0.0002]
[1773227874976,0.14329957,69654.0,69641.0,0.0002]
[1773227875767,0.00316,69655.0,69641.0,0.0002]
[1773227876018,0.14545957,69655.0,69641.0,0.0002]
[1773227876180,0.14429957,69654.0,69641.0,0.0002]
[1773227876602,0.14529957,69654.0,69641.0,0.0002]
[1773227876870,7.5e-05,69643.0,69641.0,0.0002]
[1773227877477,7.5e-05,69643.0,69641.0,0.01122987]
[1773227878114,7.5e-05,69643.0,69641.0,0.01131005]
[1773227878869,7.5e-05,69643.0,69641.0,0.00028018]
[1773227879369,7.5e-05,69643.0,69641.0,0.01128175]
[1773227879755,7.5e-05,69648.0,69641.0,0.01128175]
[1773227883156,7.5e-05,69652.0,69641.0,0.01128175]
[1773227884387,0.001075,69652.0,69641.0,0.01128175]
[1773227885036,7.5e-05,69652.0,69641.0,0.01128175]
[1773227886800,7.5e-05,69652.0,69641.0,0.00028018]
[1773227887534,7.5e-05,69652.0,69643.0,7.5e-05]
[1773227889496,0.14337457,69652.0,69643.0,7.5e-05]
[1773227889697,7.5e-05,69652.0,69643.0,7.5e-05]
[1773227890315,0.14329957,69651.0,69643.0,7.5e-05]
[1773227892275,0.14329957,69651.0,69641.0,0.00028018]
[1773227893168,0.14329957,69650.0,69641.0,0.00028018]
[1773227893368,0.14329957,69651.0,69641.0,0.00028018]
[1773227893605,0.14329957,69650.0,69641.0,0.00028018]
[1773227893785,0.14329957,69651.0,69641.0,0.00028018]
[1773227893991,0.14329957,69650.0,69641.0,0.00028018]
[1773227894192,7.5e-05,69648.0,69641.0,0.00028018]
[1773227897330,0.14337457,69648.0,69641.0,0.00028018]
[1773227897476,7.5e-05,69648.0,69641.0,0.00028018]
[1773227898108,0.14337457,69648.0,69639.0,7.5e-05]
[1773227898455,0.14329957,69647.0,69639.0,7.5e-05]
[1773227898798,0.14329957,69647.0,69639.0,0.01080068]
[1773227900203,0.14329957,69646.0,69639.0,0.01080068]
[1773227900417,0.14329957,69647.0,69639.0,0.01080068]
[1773227900625,0.11481809,69652.0,69639.0,0.01080068]
[1773227900788,0.00038051,69652.0,69639.0,0.01080068]
[1773227900994,0.00038051,69652.0,69642.0,0.01069952]
[1773227901644,0.00022001,69659.0,69650.0,0.01069952]
[1773227905327,0.00022001,69659.0,69650.0,0.01170952]
[1773227905527,0.00022001,69659.0,69650.0,0.00101]
[1773227906477,0.00022001,69659.0,69648.0,0.00116]
[1773227907757,0.00022001,69659.0,69652.0,7.5e-05]
[1773227908485,0.00022001,69659.0,69648.0,0.00116]
[1773227908725,0.00022001,69659.0,69648.0,0.001235]
[1773227909497,0.00122001,69659.0,69648.0,0.001235]
[1773227909899,0.00222001,69659.0,69648.0,0.001235]
[1773227910507,0.00122001,69659.0,69648.0,0.001235]
[1773227910811,0.00022001,69659.0,69648.0,0.001235]
[1773227911032,0.00122001,69659.0,69648.0,0.001235]
[1773227911239,0.00022001,69659.0,69648.0,0.001235]
[1773227912786,0.14347145,69658.0,69648.0,0.001235]
[1773227912987,0.14347145,69657.0,69648.0,0.001235]
[1773227913186,0.14347145,69658.0,69648.0,0.001235]
[1773227913418,0.14347145,69657.0,69648.0,0.001235]
[1773227913626,0.14347145,69658.0,69648.0,0.001235]
[1773227913820,0.14347145,69657.0,69648.0,0.001235]
[1773227914023,0.14347145,69658.0,69648.0,0.001235]
[1773227914219,0.14347145,69657.0,69648.0,0.001235]
[1773227914433,0.14347145,69658.0,69648.0,0.001235]
[1773227914593,0.0431512,69659.0,69648.0,7.5e-05]
[1773227914594,0.14347145,69657.0,69648.0,7.5e-05]
[1773227914793,0.14347145,69658.0,69648.0,7.5e-05]
[1773227915009,0.14347145,69657.0,69648.0,7.5e-05]
[1773227915205,0.14347145,69658.0,69648.0,7.5e-05]
[1773227915519,0.14347145,69657.0,69648.0,7.5e-05]
[1773227915728,0.14347145,69658.0,69648.0,7.5e-05]
[1773227915920,0.14354645,69657.0,69648.0,7.5e-05]
[1773227916148,7.5e-05,69657.0,69648.0,7.5e-05]
[1773227916327,0.14354645,69657.0,69648.0,7.5e-05]
[1773227916533,7.5e-05,69657.0,69648.0,7.5e-05]
[1773227916850,0.14354645,69657.0,69648.0,7.5e-05]
[1773227917077,7.5e-05,69657.0,69648.0,7.5e-05]
[1773227917288,0.14463145,69656.0,69643.0,7.5e-05]
[1773227917584,0.14347145,69655.0,69643.0,0.0001605]
[1773227918201,0.00116,69656.0,69630.0,0.01236214]
[1773227918202,0.03959365,69650.0,69630.0,0.01236214]
[1773227918353,0.00116,69649.0,69630.0,0.01120214]
[1773227918551,0.14463145,69649.0,69630.0,0.05195579]
[1773227918799,0.14463145,69649.0,69630.0,0.01120214]
[1773227918975,0.14347145,69648.0,69630.0,0.01120214]
[1773227919684,0.14347145,69647.0,69630.0,0.01120214]
[1773227919866,0.14347145,69648.0,69630.0,0.01120214]
[1773227920067,0.14347145,69648.0,69634.0,0.01109888]
[1773227920270,0.14463145,69649.0,69634.0,0.01109888]
[1773227920873,0.00022001,69648.0,69634.0,0.01109888]
[1773227921274,0.00116,69647.0,69634.0,0.01109888]
[1773227922275,0.00116,69646.0,69637.0,0.01088382]
[1773227923082,0.11473373,69653.0,69637.0,0.01088382]
[1773227923083,0.17241723,69656.0,69637.0,0.01088382]
[1773227923283,7.5e-05,69661.0,69637.0,0.01088382]
[1773227923284,0.00116,69677.0,69648.0,0.0108566]
[1773227923545,0.00073129,69664.0,69655.0,0.0108566]
[1773227925583,0.00073129,69664.0,69649.0,0.00116]
[1773227925804,0.00073129,69664.0,69652.0,7.5e-05]
[1773227926264,0.00389782,69664.0,69652.0,7.5e-05]
[1773227927076,0.00389782,69664.0,69657.0,7.5e-05]
[1773227927216,0.00073129,69664.0,69657.0,7.5e-05]
[1773227928489,0.00073129,69664.0,69651.0,0.01241189]
[1773227928691,0.00073129,69664.0,69646.0,0.00116]
[1773227928692,0.00173129,69664.0,69646.0,0.00116]
[1773227928936,7.5e-05,69652.0,69646.0,0.00116]
[1773227929144,7.5e-05,69652.0,69648.0,0.0002]
[1773227929921,0.07565495,69663.0,69648.0,0.0002]
[1773227931013,0.07565495,69663.0,69650.0,0.03959365]
[1773227934078,0.07565495,69663.0,69648.0,0.0002]
[1773227935227,0.07588155,69663.0,69648.0,0.0002]
[1773227936191,0.07610156,69663.0,69648.0,0.0002]
[1773227937534,0.07610156,69663.0,69648.0,0.000275]
[1773227937733,7.5e-05,69657.0,69648.0,0.000275]
[1773227939164,0.07572995,69657.0,69648.0,0.000275]
[1773227941568,0.07572995,69657.0,69643.0,7.5e-05]
[1773227941777,0.07565495,69655.0,69641.0,0.0002]
[1773227941991,0.03945986,69656.0,69641.0,0.0002]
[1773227941992,0.00116,69654.0,69641.0,0.0002]
[1773227942191,0.00116,69654.0,69636.0,0.0002]
[1773227942192,0.07565495,69650.0,69636.0,0.0002]
[1773227943114,0.07565495,69650.0,69631.0,0.0002]
[1773227943115,0.07565495,69645.0,69629.0,0.0002]
[1773227943266,0.07565495,69643.0,69629.0,0.0002]
[1773227944472,0.07565495,69643.0,69630.0,0.00033378]
[1773227944800,0.07565495,69643.0,69636.0,0.0002]
[1773227946747,0.07565495,69638.0,69630.0,0.00033378]
[1773227947767,0.07681495,69638.0,69630.0,0.00033378]
[1773227949279,0.07681495,69638.0,69629.0,0.0002]
[1773227949480,0.0768897,69638.0,69626.0,0.0004291]
[1773227950683,0.0768897,69638.0,69623.0,0.0002]
[1773227950684,0.07565495,69634.0,69623.0,0.0002]
[1773227951311,0.07565495,69634.0,69620.0,0.0002]
[1773227953219,0.00123475,69638.0,69614.0,0.0002]
[1773227953220,0.07565495,69630.0,69614.0,0.0002]